bitfinex/quotes_ETHUSD_20250814
["timestamp","ask_amount","ask_price","bid_price","bid_amount"]
[1755205247463,30.6684698,4530.4,4529.4,3.46]
[1755205247742,0.1104,4529.8,4529.4,3.8532]
[1755205248141,0.1104,4529.8,4529.5,2.8637]
[1755205248545,0.1104,4529.8,4529.6,2.8637]
[1755205248747,0.20177024,4529.8,4529.7,1.23]
[1755205248946,0.20177024,4530.0,4529.7,1.99641]
[1755205249148,0.20177024,4529.9,4529.7,4.38811]
[1755205249458,0.20369883,4530.0,4529.8,2.8637]
[1755205249755,0.20369883,4530.9,4530.0,0.55]
[1755205250047,0.20369883,4530.8,4530.4,0.1104]
[1755205250234,0.20369883,4530.7,4530.5,6.3217]
[1755205250411,0.1104,4531.1,4530.5,3.458]
[1755205250412,0.20369883,4530.6,4530.5,3.458]
[1755205250744,0.20369883,4531.0,4530.5,3.458]
[1755205250910,0.20369883,4530.9,4530.6,2.3917]
[1755205251108,0.20369883,4530.8,4530.4,3.458]
[1755205251335,0.002,4530.5,4530.4,3.458]
[1755205251532,0.20569883,4530.5,4530.4,3.93]
[1755205251744,0.20569883,4530.5,4530.4,5.16]
[1755205252049,0.20569883,4530.5,4530.4,4.688]
[1755205252412,0.20569883,4530.5,4530.4,7.1499]
[1755205253016,0.20569883,4530.5,4530.4,8.3799]
[1755205253526,0.20569883,4530.5,4530.4,8.8308]
[1755205254764,0.20569883,4530.5,4530.4,10.0608]
[1755205255315,0.20569883,4530.5,4530.4,3.69]
[1755205255521,0.79176043,4530.5,4530.4,3.69]
[1755205255737,30.79176043,4530.5,4530.4,3.69]
[1755205255915,31.14761572,4530.5,4530.4,4.92]
[1755205256248,30.79746871,4530.5,4530.4,4.92]
[1755205256424,30.7975574,4530.5,4530.4,4.92]
[1755205257443,30.79754605,4530.5,4530.4,6.15]
[1755205258650,0.79754605,4530.5,4530.4,6.15]
[1755205258932,30.20569883,4530.5,4530.4,7.38]
[1755205259236,30.79754605,4530.5,4530.4,7.38]
[1755205259632,31.27044605,4530.5,4530.4,7.38]
[1755205259857,30.79754605,4530.5,4530.4,7.38]
[1755205260259,31.57896152,4530.5,4530.4,8.61]
[1755205260456,0.90929662,4530.5,4530.4,8.61]
[1755205260766,0.3174494,4530.5,4530.4,11.0719]
[1755205260930,0.3174494,4530.5,4530.4,14.5219]
[1755205261591,0.797757,4530.5,4530.4,17.13099284]
[1755205261737,0.002,4530.5,4530.4,17.13099284]
[1755205262292,0.002,4530.5,4530.4,17.68099284]
[1755205262760,0.002,4530.5,4530.4,19.99870345]
[1755205262978,0.002,4530.5,4530.4,21.22870345]
[1755205264383,0.002,4530.5,4530.4,22.45870345]
[1755205265349,0.002,4530.5,4530.4,19.00870345]
[1755205265684,0.002,4530.5,4530.4,18.7722]
[1755205265891,0.002,4530.5,4530.4,20.5522]
[1755205267223,0.002,4530.5,4530.4,19.4409]
[1755205267355,0.002,4530.5,4530.4,20.6709]
[1755205268264,0.002,4531.5,4531.0,0.55]
[1755205268476,0.002,4531.5,4531.2,0.1104]
[1755205268664,0.002,4531.5,4531.3,3.448]
[1755205268886,0.002,4531.5,4531.4,1.23]
[1755205269285,0.002,4531.5,4531.4,3.6919]
[1755205270403,0.002,4531.5,4531.4,2.46]
[1755205270902,0.002,4531.5,4531.4,5.3728]
[1755205271398,0.002,4531.5,4531.4,2.9109]
[1755205271613,0.002,4531.5,4531.4,4.1409]
[1755205271908,0.1124,4531.5,4531.4,4.1409]
[1755205272111,0.1124,4531.5,4531.4,7.5879]
[1755205272999,0.1124,4531.5,4531.4,8.8179]
[1755205274006,0.1124,4531.5,4531.4,5.3709]
[1755205274152,0.1124,4531.5,4531.4,6.6009]
[1755205274552,0.1124,4531.5,4531.4,6.15]
[1755205275691,0.1124,4531.5,4531.4,7.38]
[1755205275997,0.7031076,4531.5,4531.4,7.38]
[1755205276154,0.1124,4531.5,4531.4,7.38]
[1755205276354,0.7031076,4531.5,4531.4,7.38]
[1755205276582,0.1124,4531.5,4531.4,7.38]
[1755205276897,0.1124,4531.5,4531.4,9.8419]
[1755205277097,0.002,4531.5,4531.4,14.60721349]
[1755205277312,0.002,4531.6,4531.5,2.20677479]
[1755205277514,0.002,4531.6,4531.5,8.66167479]
[1755205278533,0.002,4531.6,4531.5,5.89867479]
[1755205278680,0.002,4531.6,4531.5,7.1339]
[1755205279212,0.002,4531.6,4531.5,11.69679253]
[1755205279416,0.002,4531.6,4531.5,9.49001774]
[1755205279617,0.002,4531.6,4531.5,11.69679253]
[1755205279834,0.002,4531.6,4531.5,13.03719253]
[1755205280726,0.002,4531.6,4531.5,10.28041774]
[1755205281044,0.002,4531.6,4531.5,8.4743]
[1755205281322,0.37870412,4531.8,4531.6,2.75671348]
[1755205281537,0.37870412,4531.8,4531.7,6.1976774]
[1755205281735,0.37870412,4531.8,4531.7,3.991]
[1755205282104,0.37870412,4531.8,4531.7,6.307]
[1755205282305,0.37870412,4531.8,4531.7,2.316]
[1755205282504,0.37870412,4531.8,4531.7,3.444]
[1755205282704,0.37870412,4531.8,4531.7,4.674]
[1755205282910,0.37870412,4531.8,4531.7,1.23]
[1755205283204,33.38270412,4531.8,4531.7,1.23]
[1755205283413,35.362256,4531.8,4531.7,1.23]
[1755205283614,34.18022173,4531.8,4531.7,1.23]
[1755205284100,34.18022173,4531.8,4531.7,2.46]
[1755205284613,34.18016213,4531.8,4531.7,2.46]
[1755205284830,1.325,4531.6,4531.5,3.16838569]
[1755205285027,35.78285801,4531.6,4531.5,3.16838569]
[1755205285243,36.28549241,4531.6,4531.5,3.16938569]
[1755205285431,36.29149241,4531.6,4531.5,4.39938569]
[1755205286120,39.74549241,4531.6,4531.5,4.39938569]
[1755205286457,59.74549241,4531.6,4531.5,4.39938569]
[1755205286911,59.74549241,4531.6,4531.5,5.62938569]
[1755205287446,59.8848012,4531.6,4531.5,2.13315488]
[1755205287648,59.8848012,4531.6,4531.4,8.61]
[1755205287649,5.3776344,4531.5,4531.4,6.56696882]
[1755205287937,36.1786753,4531.5,4531.4,6.56696882]
[1755205288345,58.3366753,4531.5,4531.4,7.79696882]
[1755205288581,56.81781986,4531.5,4531.4,7.79696882]
[1755205288715,54.8536753,4531.5,4531.4,7.79696882]
[1755205288904,58.3366753,4531.5,4531.4,7.79696882]
[1755205289104,58.3376753,4531.5,4531.4,7.79696882]
[1755205289307,54.2996753,4531.5,4531.4,7.79696882]
[1755205289543,58.85591469,4531.5,4531.4,7.79696882]
[1755205289706,58.85591469,4531.5,4531.4,9.02696882]
[1755205289908,59.68422489,4531.5,4531.4,9.02696882]
[1755205290145,58.1133511,4531.5,4531.4,9.02696882]
[1755205291248,38.1133511,4531.5,4531.4,10.25696882]
[1755205291961,38.3376753,4531.5,4531.4,7.87090999]
[1755205292251,58.3376753,4531.5,4531.4,7.87090999]
[1755205292406,59.6626753,4531.5,4531.4,9.10090999]
[1755205292607,59.6626753,4531.5,4531.4,7.91530673]
[1755205292844,59.77800588,4531.5,4531.4,7.91530673]
[1755205293043,59.77800588,4531.5,4531.4,6.96682412]
[1755205293341,61.74302787,4531.5,4531.4,6.20803803]
[1755205293535,59.77888331,4531.5,4531.4,6.20803803]
[1755205293742,59.77888331,4531.5,4531.4,6.83100916]
[1755205294057,59.77888331,4531.5,4531.4,6.34538606]
[1755205294260,59.77588331,4531.5,4531.4,6.34538606]
[1755205294461,59.77488331,4531.5,4531.4,6.34538606]
[1755205294835,59.77488331,4531.5,4531.4,4.5557359]
[1755205295233,29.77488331,4531.5,4531.4,5.7857359]
[1755205295479,59.77488331,4531.5,4531.4,5.47738325]
[1755205295639,59.98999606,4531.5,4531.4,5.47738325]
[1755205295842,60.65356506,4531.5,4531.4,4.1519967]
[1755205296041,62.97756506,4531.5,4531.4,3.98626156]
[1755205296238,62.97756506,4531.5,4531.4,2.62405567]
[1755205296422,62.97756506,4531.5,4531.4,1.21866731]
[1755205296629,62.97756506,4531.5,4531.4,2.44866731]
[1755205296954,62.97756506,4531.5,4531.4,2.07996732]
[1755205297164,62.97756506,4531.5,4531.4,0.73522501]
[1755205297367,62.97756506,4531.5,4531.0,0.001]
[1755205297368,0.55,4531.2,4530.4,14.761]
[1755205297663,0.55,4531.4,4530.4,14.761]
[1755205297664,1.875,4530.5,4530.4,14.761]
[1755205297968,39.29626312,4530.5,4530.4,14.761]
[1755205298139,39.76695273,4530.5,4530.4,15.991]
[1755205298469,40.43059273,4530.5,4530.4,15.991]
[1755205299391,56.94959273,4530.5,4530.4,15.991]
[1755205299577,61.09875526,4530.5,4530.4,17.221]
[1755205299781,61.37706546,4530.5,4530.4,17.221]
[1755205300088,60.71342546,4530.5,4530.4,17.221]
[1755205300882,59.88311526,4530.5,4530.4,17.221]
[1755205301188,38.70831833,4530.5,4530.4,18.451]
[1755205301350,35.78331833,4530.5,4530.4,18.451]
[1755205301550,38.70731833,4530.5,4530.4,18.451]
[1755205301789,39.25731833,4530.5,4530.4,18.451]
[1755205301966,39.25630512,4530.5,4530.4,18.451]
[1755205302292,30.78497454,4530.5,4530.4,20.767]
[1755205302452,34.25897454,4530.5,4530.4,21.997]
[1755205302998,33.78828493,4530.5,4530.4,21.997]
[1755205303392,3.78828493,4530.5,4530.4,21.997]
[1755205304093,3.78628493,4530.5,4530.4,23.227]
[1755205304455,33.78628493,4530.5,4530.4,23.227]
[1755205305297,33.78628493,4530.5,4530.4,24.457]
[1755205306798,0.1104,4530.5,4530.4,25.687]
[1755205307007,0.1104,4530.5,4530.4,27.89146404]
[1755205307985,0.1104,4530.5,4530.4,29.12146404]
[1755205309103,0.1104,4530.5,4530.4,32.58846404]
[1755205309303,0.1104,4530.5,4530.4,33.81846404]
[1755205310494,0.1104,4530.5,4530.4,35.04846404]
[1755205312006,0.1104,4530.5,4530.4,36.27846404]
[1755205312827,0.1104,4530.7,4530.4,36.27846404]
[1755205313024,0.1104,4530.7,4530.4,33.96246404]
[1755205313186,0.1104,4530.7,4530.5,2.473]
[1755205313523,0.1104,4530.7,4530.6,4.691]
[1755205314113,0.1104,4530.7,4530.6,3.703]
[1755205314314,6.5714,4530.7,4530.6,1.22668664]
[1755205314486,7.92269651,4530.7,4530.6,1.22668664]
[1755205314684,3.55,4530.6,4530.4,28.291]
[1755205315010,36.78837772,4530.5,4530.4,28.291]
[1755205315209,37.25829651,4530.5,4530.4,28.291]
[1755205316089,37.25829651,4530.5,4530.4,29.521]
[1755205316290,37.25886479,4530.5,4530.4,29.521]
[1755205317438,37.25886479,4530.5,4530.4,30.751]
[1755205317788,38.58386479,4530.5,4530.4,30.751]
[1755205318189,37.25886479,4530.5,4530.4,30.751]
[1755205318740,37.25886479,4530.5,4530.4,31.981]
[1755205318942,39.35818899,4530.5,4530.4,31.981]
[1755205319306,59.35818899,4530.5,4530.4,31.981]
[1755205319509,59.36218899,4530.5,4530.4,29.59477794]
[1755205319950,59.64051522,4530.5,4530.4,29.59477794]
[1755205320119,59.64051522,4530.5,4530.4,30.82477794]
[1755205320325,29.63651522,4530.5,4530.4,30.82477794]
[1755205320810,59.63651522,4530.5,4530.4,30.82477794]
[1755205321618,59.63651522,4530.5,4530.4,32.05477794]
[1755205322927,58.91458899,4530.5,4530.4,33.28477794]
[1755205323133,59.90377679,4530.5,4530.4,33.28477794]
[1755205323311,60.18210302,4530.5,4530.4,33.28477794]
[1755205323513,56.72510302,4530.5,4530.4,33.28477794]
[1755205323752,59.90177679,4530.5,4530.4,33.28477794]
[1755205323960,54.57177679,4530.5,4530.4,33.28477794]
[1755205324190,58.02577679,4530.5,4530.4,33.28477794]
[1755205324495,34.57204208,4530.5,4530.4,34.51477794]
[1755205324898,38.02604208,4530.5,4530.4,32.72512763]
[1755205325730,40.17936831,4530.5,4530.4,31.56883723]
[1755205325865,47.54369251,4530.5,4530.4,31.13388214]
[1755205326218,60.76892573,4530.5,4530.4,19.26024233]
[1755205326381,63.52087205,4530.5,4530.4,19.26024233]
[1755205326583,63.27277005,4530.5,4530.4,17.14024233]
[1755205326825,57.06482373,4530.5,4530.4,17.02977024]
[1755205326963,60.52082373,4530.5,4530.4,18.25977024]
[1755205327372,60.77092573,4530.5,4530.4,18.25977024]
[1755205327599,30.77092573,4530.5,4530.4,18.25977024]
[1755205327784,60.77092573,4530.5,4530.4,18.25977024]
[1755205327989,60.52082373,4530.5,4530.4,18.25977024]
[1755205328373,62.48702499,4530.5,4530.4,19.48977024]
[1755205328894,60.2414975,4530.5,4530.4,19.48977024]
[1755205329300,33.0121733,4530.5,4530.4,19.48977024]
[1755205329595,41.2034867,4530.5,4530.4,18.29653543]
[1755205329794,40.18036831,4530.5,4530.4,19.52653543]
[1755205330222,60.18036831,4530.5,4530.4,19.52653543]
[1755205331234,60.18036831,4530.5,4530.4,20.75653543]
[1755205331434,64.3038109,4530.5,4530.4,20.75653543]
[1755205331588,59.27569251,4530.5,4530.4,18.36978354]
[1755205331785,60.40369251,4530.5,4530.4,18.36978354]
[1755205332724,60.40369251,4530.5,4530.4,19.59978354]
[1755205333909,60.17936831,4530.5,4530.4,19.59978354]
[1755205334228,61.7510772,4530.5,4530.4,20.82978354]
[1755205334723,61.7510772,4530.5,4530.4,19.03985237]
[1755205334900,58.2970772,4530.5,4530.4,19.03985237]
[1755205335105,59.90104208,4530.5,4530.4,19.03985237]
[1755205335300,60.17936831,4530.5,4530.4,20.26985237]
[1755205336095,60.61886831,4530.5,4530.4,20.26985237]
[1755205336916,60.62086831,4530.5,4530.4,21.49985237]
[1755205337703,60.18136831,4530.5,4530.4,21.49985237]
[1755205338221,60.18136831,4530.5,4530.4,22.72985237]
[1755205339024,56.60428908,4530.5,4530.4,22.72985237]
[1755205339243,59.78645055,4530.5,4530.4,25.67285237]
[1755205339443,59.78645055,4530.5,4530.4,26.43285237]
[1755205340930,59.78645055,4530.5,4530.4,27.66285237]
[1755205341138,61.35815944,4530.5,4530.4,27.66285237]
[1755205341728,61.35815944,4530.5,4530.4,25.18985237]
[1755205341928,61.63648567,4530.5,4530.4,25.18985237]
[1755205342127,60.06477678,4530.5,4530.4,26.41985237]
[1755205342441,60.06477678,4530.5,4530.4,24.03342191]
[1755205343008,51.46345055,4530.5,4530.4,26.73322191]
[1755205343324,33.5708877,4530.5,4530.4,26.73322191]
[1755205343533,36.5708877,4530.5,4530.4,27.96322191]
[1755205343824,36.5708877,4530.5,4530.4,25.26342191]
[1755205344039,37.39921393,4530.5,4530.4,25.26342191]
[1755205344360,38.72621393,4530.5,4530.4,25.26342191]
[1755205344564,38.72621393,4530.5,4530.4,24.07025925]
[1755205344708,38.72621393,4530.5,4530.4,22.28051677]
[1755205344909,38.72621393,4530.5,4530.4,23.51051677]
[1755205345917,8.72621393,4530.5,4530.4,23.51051677]
[1755205346249,39.38974493,4530.5,4530.4,23.51051677]
[1755205346439,39.38974493,4530.5,4530.4,24.74051677]
[1755205346848,35.6654187,4530.5,4530.4,24.74051677]
[1755205347072,39.1114187,4530.5,4530.4,25.17911677]
[1755205347237,39.1114187,4530.5,4530.4,27.44031677]
[1755205347447,35.1154187,4530.5,4530.4,25.17911677]
[1755205347773,37.8978877,4530.5,4530.4,24.74051677]
[1755205347931,37.8978877,4530.5,4530.4,25.97051677]
[1755205348132,38.4478877,4530.5,4530.4,25.97051677]
[1755205348468,38.72621393,4530.5,4530.4,25.97051677]
[1755205348829,38.72621393,4530.5,4530.4,23.58415066]
[1755205348979,48.94144013,4530.5,4530.4,23.41840598]
[1755205349194,51.37784013,4530.5,4530.4,21.66501018]
[1755205349393,71.37784013,4530.5,4530.4,21.66501018]
[1755205350193,71.49297447,4530.5,4530.4,21.45782122]
[1755205350788,71.4933706,4530.5,4530.4,22.68782122]
[1755205351292,67.68331492,4530.5,4530.4,22.73582122]
[1755205351494,75.23971492,4530.5,4530.4,35.47641522]
[1755205351792,72.9172686,4530.5,4530.4,35.47641522]
[1755205351996,73.1673706,4530.5,4530.4,36.70641522]
[1755205352439,69.1673706,4530.5,4530.4,36.70641522]
[1755205353075,39.1673706,4530.5,4530.4,36.70641522]
[1755205353250,71.91931692,4530.5,4530.4,36.70641522]
[1755205353449,71.91931692,4530.5,4530.4,37.93641522]
[1755205353652,68.9172686,4530.5,4530.4,37.93641522]
[1755205353876,66.2164686,4530.5,4530.4,37.93641522]
[1755205354205,65.9931444,4530.5,4530.4,37.93641522]
[1755205354406,62.5461444,4530.5,4530.4,37.93641522]
[1755205354618,67.13700439,4530.5,4530.4,37.93641522]
[1755205354763,67.68700439,4530.5,4530.4,34.98998302]
[1755205355096,35.71481817,4530.5,4530.4,34.98998302]
[1755205355267,45.59968383,4530.5,4530.4,34.98998302]
[1755205355468,45.87801006,4530.5,4530.4,34.98998302]
[1755205355901,42.43101006,4530.5,4530.4,34.98998302]
[1755205356078,45.87801006,4530.5,4530.4,36.21998302]
[1755205356373,65.87801006,4530.5,4530.4,36.21998302]
[1755205356575,67.85020768,4530.5,4530.4,36.21998302]
[1755205357628,68.57882146,4530.5,4530.4,37.28424098]
[1755205357901,68.80314566,4530.5,4530.4,37.28424098]
[1755205358071,69.00865064,4530.5,4530.4,37.28424098]
[1755205358265,62.86085064,4530.5,4530.4,37.28424098]
[1755205358461,50.33080021,4530.5,4530.4,39.98404098]
[1755205358670,53.88720021,4530.5,4530.4,41.21404098]
[1755205358980,49.59736221,4530.5,4530.4,41.21404098]
[1755205359180,8.07036221,4530.5,4530.4,41.21404098]
[1755205359407,0.43920021,4530.5,4530.4,41.21404098]
[1755205359698,36.88621555,4530.5,4530.4,41.21404098]
[1755205360062,36.88621555,4530.5,4530.4,42.44404098]
[1755205360267,36.88621555,4530.5,4530.4,40.18284098]
[1755205360468,36.88621555,4530.5,4530.4,39.74424098]
[1755205360697,37.16454178,4530.5,4530.4,39.74424098]
[1755205361581,37.16454178,4530.5,4530.4,40.97424098]
[1755205362670,38.49154178,4530.5,4530.4,40.97424098]
[1755205363212,38.49154178,4530.5,4530.4,42.20424098]
[1755205363569,38.21321555,4530.5,4530.4,42.20424098]
[1755205363970,38.21321555,4530.5,4530.4,23.16424098]
[1755205364203,38.21321555,4530.5,4530.4,18.40424098]
[1755205364398,38.21321555,4530.5,4530.4,19.63424098]
[1755205364825,38.68640428,4530.5,4530.4,19.63424098]
[1755205365114,39.51473051,4530.5,4530.4,19.63424098]
[1755205365283,35.94441994,4530.5,4530.4,16.65161413]
[1755205365475,38.68528763,4530.5,4530.4,14.26533144]
[1755205365898,38.68528763,4530.5,4530.4,15.49533144]
[1755205366275,41.50658763,4530.5,4530.4,15.49533144]
[1755205366471,35.12888763,4530.5,4530.4,15.49533144]
[1755205366673,38.68528763,4530.5,4530.4,15.93393144]
[1755205366916,38.68528763,4530.5,4530.4,15.49533144]
[1755205367220,38.68528763,4530.5,4530.4,15.93393144]
[1755205367372,8.68515046,4530.5,4530.4,17.16393144]
[1755205367937,38.68515046,4530.5,4530.4,17.16393144]
[1755205368439,36.3306713,4530.5,4530.4,17.16393144]
[1755205368610,34.35815046,4530.5,4530.4,17.16393144]
[1755205368959,30.91215046,4530.5,4530.4,18.39393144]
[1755205369133,34.83954995,4530.5,4530.4,18.39393144]
[1755205369301,35.39867817,4530.5,4530.4,18.39393144]
[1755205369637,1.23768476,4530.5,4530.4,21.83993144]
[1755205369796,0.55912822,4530.5,4530.4,24.02402458]
[1755205370145,0.44872822,4530.5,4530.4,25.25402458]
[1755205370348,0.45072822,4530.5,4530.4,21.80802458]
[1755205370496,0.56112822,4530.5,4530.4,21.80802458]
[1755205370842,30.76655339,4530.5,4530.4,21.80802458]
[1755205370995,11.57031579,4530.5,4530.4,13.53]
[1755205371195,67.05291333,4530.5,4530.4,7.51892387]
[1755205371395,0.55,4530.2,4529.3,0.001]
[1755205371630,1.327,4529.9,4529.3,0.001]
[1755205371930,44.25546111,4529.8,4529.3,0.001]
[1755205372140,44.37864765,4529.8,4529.3,0.001]
[1755205372637,40.89164765,4529.8,4529.7,0.96478908]
[1755205372818,44.37764765,4529.8,4529.7,0.96478908]
[1755205373023,44.37764765,4529.8,4529.7,2.19478908]
[1755205373209,64.37664765,4529.8,4529.7,2.19478908]
[1755205373612,64.92664765,4529.8,4529.7,2.19478908]
[1755205373808,64.92664765,4529.8,4529.7,1.98757668]
[1755205374008,62.95497019,4529.8,4529.7,1.98757668]
[1755205374319,69.71208146,4529.8,4529.7,1.98757668]
[1755205374525,69.71208146,4529.8,4529.7,3.21757668]
[1755205375242,69.71208146,4529.8,4529.7,1.42713917]
[1755205375456,0.55,4529.5,4529.3,0.001]
[1755205375757,46.51943449,4529.5,4529.3,0.001]
[1755205375961,43.10463449,4529.5,4529.4,1.231]
[1755205376262,63.10463449,4529.5,4529.4,1.231]
[1755205376636,63.10448602,4529.5,4529.4,1.231]
[1755205377462,59.61748602,4529.5,4529.4,0.43149005]
[1755205377764,62.79221736,4529.5,4529.4,0.32096937]
[1755205378713,62.79221736,4529.5,4529.4,1.55096937]
[1755205378974,63.30821736,4529.5,4529.4,1.55096937]
[1755205379250,67.10148602,4529.5,4529.4,1.55096937]
[1755205379458,67.76529002,4529.5,4529.4,1.55096937]
[1755205379610,67.16903616,4529.5,4529.4,1.55096937]
[1755205380111,67.16903616,4529.5,4529.4,2.78096937]
[1755205380327,67.45502136,4529.5,4529.4,1.58729533]
[1755205380526,67.76429002,4529.5,4529.4,1.58729533]
[1755205380726,67.76429002,4529.5,4529.4,1.47677465]
[1755205381157,67.76429002,4529.5,4529.4,1.36625397]
[1755205381339,67.76429002,4529.5,4528.7,0.001]
[1755205381340,0.55,4529.3,4528.7,0.001]
[1755205381541,1.877,4528.3,4528.2,4.65669588]
[1755205381867,44.44634719,4528.3,4528.2,4.65669588]
[1755205382050,45.041878,4528.3,4528.2,4.65669588]
[1755205382256,67.58664964,4528.3,4528.2,4.65669588]
[1755205382553,67.58664964,4528.3,4528.2,5.88669588]
[1755205382961,68.92627966,4528.3,4528.2,5.88669588]
[1755205383329,68.46177966,4528.3,4528.2,5.88669588]
[1755205383563,66.01407966,4528.3,4528.2,3.49875347]
[1755205383760,66.47857966,4528.3,4528.2,3.49875347]
[1755205383989,66.01407966,4528.3,4528.2,4.72875347]
[1755205384126,68.92527966,4528.3,4528.2,4.2975887]
[1755205384646,68.92427966,4528.3,4528.2,4.2975887]
[1755205385042,72.92327966,4528.3,4528.2,4.2975887]
[1755205385228,72.92327966,4528.3,4528.2,1.16825751]
[1755205385229,73.138713,4528.3,4528.2,1.16825751]
[1755205385430,73.138713,4528.3,4525.3,17.26746992]
[1755205385431,1.327,4527.3,4525.3,17.26746992]
[1755205385679,0.1104,4525.4,4525.3,14.86721292]
[1755205385834,31.863139,4525.4,4525.3,14.86721292]
[1755205386190,36.14609498,4525.4,4525.3,17.33801292]
[1755205386365,36.02328489,4525.4,4525.3,17.77831292]
[1755205386530,32.54128489,4525.4,4525.3,17.77831292]
[1755205386861,36.14557067,4525.4,4525.3,17.77831292]
[1755205387025,36.14557067,4525.4,4525.3,16.09721292]
[1755205387229,32.66357067,4525.4,4525.3,16.09721292]
[1755205387968,38.34697447,4525.4,4525.3,16.09721292]
[1755205388273,58.02784468,4525.4,4525.3,16.09721292]
[1755205388566,59.35484468,4525.4,4525.3,17.32721292]
[1755205389085,59.35684468,4525.4,4525.3,17.32721292]
[1755205389429,55.87084468,4525.4,4525.3,17.32721292]
[1755205389675,61.80354468,4525.4,4525.3,17.32721292]
[1755205389837,54.70069082,4525.4,4525.3,18.55721292]
[1755205390041,59.35684468,4525.4,4525.3,18.55721292]
[1755205390251,61.80354468,4525.4,4525.3,18.55721292]
[1755205390453,59.05157602,4525.4,4525.3,18.55721292]
[1755205390655,59.04982385,4525.4,4525.3,18.55721292]
[1755205390973,61.49652385,4525.4,4525.3,18.44661695]
[1755205391143,65.49652385,4525.4,4525.3,18.44661695]
[1755205391351,33.25378485,4525.4,4525.3,19.56602098]
[1755205391549,58.97438276,4525.4,4525.3,19.30052109]
[1755205391750,63.24537868,4525.4,4525.3,19.30052109]
[1755205391984,58.46638276,4525.4,4525.3,19.30052109]
[1755205392298,59.52613662,4525.4,4525.3,19.30052109]
[1755205392596,59.21686796,4525.4,4525.3,19.30052109]
[1755205392791,55.26036796,4525.4,4525.3,20.53052109]
[1755205393093,58.46738276,4525.4,4525.3,20.53052109]
[1755205393481,53.76177776,4525.4,4525.3,20.53052109]
[1755205393789,57.25477776,4525.4,4525.3,20.53052109]
[1755205393945,58.38891534,4525.4,4525.3,20.53052109]
[1755205394176,58.38891534,4525.4,4525.3,21.76052109]
[1755205394927,58.67490054,4525.4,4525.3,21.76052109]
[1755205395225,54.89591534,4525.4,4525.3,21.76052109]
[1755205395427,36.98225761,4525.4,4525.3,24.67162109]
[1755205395716,36.98225761,4525.4,4525.3,23.43082109]
[1755205396272,33.49125761,4525.4,4525.3,22.99052109]
[1755205396510,36.98325761,4525.4,4525.3,22.99052109]
[1755205396677,33.49125761,4525.4,4525.3,23.43082109]
[1755205396879,33.49125761,4525.4,4525.3,25.90162109]
[1755205397084,36.98125761,4525.4,4525.3,27.13162109]
[1755205397298,36.98125761,4525.4,4525.3,24.66082109]
[1755205397922,38.30825761,4525.4,4525.3,24.22052109]
[1755205398093,34.81825761,4525.4,4525.3,24.22052109]
[1755205398426,38.30625761,4525.4,4525.3,27.13162109]
[1755205398630,34.34479521,4525.4,4525.3,28.36162109]
[1755205398932,34.83279521,4525.4,4525.3,28.36162109]
[1755205399220,36.50579521,4525.4,4525.3,28.36162109]
[1755205399405,35.84140021,4525.4,4525.3,28.36162109]
[1755205399718,37.08866121,4525.4,4525.3,28.36162109]
[1755205399918,37.08866121,4525.4,4525.3,29.59162109]
[1755205399919,33.60066121,4525.4,4525.3,29.59162109]
[1755205400124,3.96537543,4525.4,4525.3,31.79608513]
[1755205400825,3.96537543,4525.4,4525.3,29.59162109]
[1755205401519,37.08774054,4525.4,4525.3,30.82162109]
[1755205401737,37.55773068,4525.4,4525.3,30.82162109]
[1755205402305,37.55894474,4525.4,4525.3,30.55622914]
[1755205402612,39.15646489,4525.4,4525.3,27.64181127]
[1755205402925,39.15646489,4525.4,4525.3,28.87181127]
[1755205403331,39.15546489,4525.4,4525.3,29.30461127]
[1755205403512,34.56094474,4525.4,4525.3,31.94621581]
[1755205404319,34.56094474,4525.4,4525.3,32.90821127]
[1755205405240,34.51094474,4525.4,4525.3,32.90821127]
[1755205405738,34.51094474,4525.4,4525.3,34.13821127]
[1755205406235,34.51094474,4525.4,4525.3,38.17421127]
[1755205406236,0.32651049,4525.4,4525.3,38.17421127]
[1755205406436,0.16926229,4526.3,4525.4,0.55]
[1755205406636,0.002,4526.8,4525.6,0.55]
[1755205406941,3.493,4526.7,4526.1,0.55]
[1755205407146,0.002,4526.8,4526.1,4.043]
[1755205407296,0.002,4526.8,4526.2,2.7282]
[1755205407637,0.002,4526.8,4526.3,4.11412]
[1755205407836,3.492,4526.7,4526.3,0.97672]
[1755205408009,3.492,4526.7,4525.5,2.20446404]
[1755205408010,0.12276646,4526.6,4526.4,2.7282]
[1755205408212,30.0,4526.5,4526.4,0.3546]
[1755205408525,33.61576646,4526.5,4526.4,0.3546]
[1755205408699,33.61576646,4526.5,4526.4,2.7282]
[1755205408905,30.12276646,4526.5,4526.4,2.7282]
[1755205409327,33.61576646,4526.5,4526.4,2.7282]
[1755205409519,33.61576646,4526.5,4526.4,3.9582]
[1755205410029,33.61576646,4526.5,4526.4,3.6036]
[1755205410336,37.08715107,4526.5,4526.4,1.23]
[1755205410533,38.32224977,4526.5,4526.4,1.23]
[1755205411058,38.53567477,4526.5,4526.4,2.46]
[1755205411265,38.53582741,4526.5,4526.4,2.46]
[1755205411469,37.08613972,4526.5,4526.4,2.46]
[1755205411621,33.59413972,4526.5,4526.4,2.46]
[1755205411821,37.08413972,4526.5,4526.4,2.46]
[1755205412366,37.08413972,4526.5,4526.4,4.8336]
[1755205412522,37.08413972,4526.5,4526.4,6.0636]
[1755205413326,33.59413972,4526.5,4526.4,6.0636]
[1755205413539,30.59413972,4526.5,4526.4,6.4182]
[1755205413741,34.08313972,4526.5,4526.4,6.4182]
[1755205413963,34.08313972,4526.5,4526.4,7.6482]
[1755205414171,34.08213972,4526.5,4526.4,7.6482]
[1755205414876,30.59413972,4526.5,4526.4,7.2936]
[1755205415054,34.08213972,4526.5,4526.4,7.2936]
[1755205415262,34.08213972,4526.5,4526.4,8.5236]
[1755205415457,34.08213972,4526.5,4526.4,6.15]
[1755205416142,34.19253972,4526.5,4526.4,6.15]
[1755205416544,34.19253972,4526.5,4526.4,7.38]
[1755205417885,4.19253972,4526.5,4526.4,7.38]
[1755205418185,3.72115511,4526.5,4526.4,8.61]
[1755205418482,3.71815511,4526.5,4526.4,8.61]
[1755205418683,30.70453972,4526.5,4526.4,8.61]
[1755205418977,34.18653972,4526.5,4526.4,8.61]
[1755205419548,34.18653972,4526.5,4526.4,9.84]
[1755205420268,34.18553972,4526.5,4526.4,9.84]
[1755205420981,34.18553972,4526.5,4526.4,11.07]